Cogmind - Beta 13 @@@ ROGUE MODE // 2024.03.18 @ 15:34:59 Player: Mogwok Wargfriend Result: Destroyed by SR-OT2(R) with Subdweller Laser Performance ------------- Evolutions (0) 0 Regions Visited (2) 400 Robots Destroyed (16) 80 Value Destroyed (227) 227 Prototype IDs (0) 0 Alien Tech Used (0) 0 Bonus (0) 0 TOTAL SCORE: 707 Bonus ------- None Cogmind --------- Core Integrity 0/250 Matter 137/300 Energy 99/100 System Corruption 2% Temperature Cool (6) Movement Core (50) Location -10/Subcaves Parts ------- > --- POWER (1) -------- (None) > --- PROPULSION (2) --- Flight Unit Flight Unit > --- UTILITY (2) ------ (None) > --- WEAPON (2) ------- (None) > --- INVENTORY (5) ---- Subdweller Monowheel Flight Unit Flight Unit Flight Unit Peak State ------------ > --- POWER ------------ Light Ion Engine > --- PROPULSION ------- Subdweller Monowheel Flight Unit > --- UTILITY ---------- Scrap Shield > --- WEAPON ----------- Light Assault Rifle Battle Cannon > --- INVENTORY -------- Light Ion Engine Flight Unit Flight Unit Flight Unit [Rating: 11] Favorites ----------- Power Ion Engine Engine Ion Engine Propulsion Wheel Wheel Wheel Flight Unit Flight Unit Utility Small Storage Unit Device Seismic Detector Storage Small Storage Unit Processor Signal Interpreter Protection Propulsion Shielding Weapon Small Laser Energy Gun Small Laser Ballistic Gun Assault Rifle Ballistic Cannon Battle Cannon Build | -11 -10 -10 ------- Run | Yrd Mat Sub Slots Evolved . | . . . Power . | . . . Propulsion . | . . . Utility . | . . . Weapon . | . . . Parts Attached 30 | 6 12 12 Power 6 | 1 2 3 Engine 6 | 1 2 3 Core . | . . . Reactor . | . . . Propulsion 11 | 2 2 7 Treads . | . . . Leg . | . . . Wheel 4 | 2 . 2 Hover . | . . . Flight 7 | . 2 5 Utility 8 | 1 6 1 Device 4 | . 4 . Storage 1 | 1 . . Processor 1 | . 1 . Hackware . | . . . Protection 2 | . 1 1 Artifact . | . . . Weapon 5 | 2 2 1 Energy Gun 1 | 1 . . Energy Cannon . | . . . Ballistic Gun 3 | 1 2 . Ballistic Cannon 1 | . . 1 Launcher . | . . . Special Weapon . | . . . Impact Weapon . | . . . Slashing Weapon . | . . . Piercing Weapon . | . . . Special Melee Weapon . | . . . Unidentified Prototypes . | . . . Parts Lost 6 | . . 6 Power 2 | . . 2 Propulsion 1 | . . 1 Utility 1 | . . 1 Weapon 2 | . . 2 Highest Loss Streak 3 | . . 3 To Critical Strikes . | . . . Average Slot Usage (%) 94 | . 98 86 Engine 14 | . 14 14 Wheel 15 | . 21 2 Flight 12 | . 5 25 Device 8 | . 12 . Storage 7 | . 11 . Processor 3 | . 2 7 Protection 4 | . 1 10 Energy Gun 9 | . 14 1 Ballistic Gun 14 | . 14 14 Ballistic Cannon 3 | . . 9 Naked Turns . | . . . Heaviest Build 25 | 12 14 25 Greatest Support 20 | 20 20 20 Greatest Overweight (x) 4 | 3 4 3 Average Overweight (x) . | . . . Largest Inventory Capacity 8 | 8 8 5 Average Capacity 6 | 7 7 5 Most Carried 8 | 6 8 5 Average Carried 6 | 2 7 4 Final Capacity 8 | 8 5 5 Final Carried 6 | 6 5 4 Class Distribution -------------------- 100% | Mutant Dominant Class ---------------- Mutant | -10/Materials Mutant | -10/Subcaves Resources | -11 -10 -10 ----------- Run | Yrd Mat Sub Matter Collected 531 | 195 198 138 Remotely . | . . . Salvage Created 434 | . 338 96 Parts 31 | . 26 5 Haulers Intercepted . | . . . Recyclers Shooed . | . . . Parts Field Recycled . | . . . Retrieved Matter . | . . . Parts Self-Destructed 10 | . . 10 Prevented . | . . . Kills | -11 -10 -10 ------- Run | Yrd Mat Sub Combat Hostiles Destroyed 12 | . 8 4 Guns 11 | . 8 3 Cannons 1 | . . 1 Classes Destroyed 6 | . 5 1 Worker 1 | . 1 . Recycler 2 | . 2 . Watcher 1 | . 1 . Swarmer 9 | . 6 3 Grunt 2 | . 2 . Subdweller 1 | . . 1 Best Kill Streak 5 | . 5 3 Combat Bots Only 3 | . 3 3 Max Kills in Single Turn 2 | . 2 1 Gunslinging 1 | . 1 . Exploded . | . . . Melee . | . . . Uniques/NPCs Destroyed . | . . . Combat | -11 -10 -10 -------- Run | Yrd Mat Sub Hostile Shots Fired 109 | . 35 74 Missed 36 | . 9 27 Damage Taken 960 | . 234 726 Core 258 | . 104 154 Absorbed by Shields . | . . . Core Remaining (%) 100 | 100 . . Volleys Fired 63 | . 36 27 Largest 2 | . 2 2 Hottest 60 | . 60 59 Shots Fired 116 | . 73 43 Gun 100 | . 73 27 Cannon 16 | . . 16 Launcher . | . . . Special . | . . . Kinetic 80 | . 37 43 Thermal 36 | . 36 . Explosive . | . . . Electromagnetic . | . . . Robot Hit Streak 14 | . 7 14 Robot Miss Streak 6 | . 6 1 Penetration Max . | . . . Secondary Targets 1 | . 1 . Max Gunslinging Chain 1 | . 1 . Shots Hit Robots 69 | . 33 36 Core Hits 24 | . 17 7 Critical Kills . | . . . Critical Parts Destroyed . | . . . Critical Strikes . | . . . Melee Attacks . | . . . Impact . | . . . Slashing . | . . . Piercing . | . . . Sneak Attacks . | . . . Combat Hostiles . | . . . Follow-up Attacks . | . . . Damage Inflicted 751 | . 397 354 Guns 542 | . 389 153 Cannons 201 | . . 201 Explosions . | . . . Melee . | . . . Ramming 8 | . 8 . Kinetic 569 | . 215 354 Thermal 174 | . 174 . Explosive . | . . . Electromagnetic . | . . . Impact . | . . . Slashing . | . . . Piercing . | . . . Highest Corruption 2 | . 2 2 Average Corruption 2 | . 2 2 Corruption Purged . | . . . Corruption Blocked . | . . . Effects 13 | . 10 3 Message Errors 4 | . 3 1 Matter Fused 2 | . 1 1 Heat Flow Errors 2 | . 2 . Energy Discharges 1 | . 1 . Data Loss (minor) 2 | . 1 1 Data Loss (major) 1 | . 1 . Misfires 1 | . 1 . Overload Shots . | . . . Overflow Damage . | . . . Projectiles . | . . . Explosions . | . . . Melee . | . . . Knockbacks 4 | . . 4 Impact . | . . . Kinetic 4 | . . 4 Secondary . | . . . Self-Inflicted Damage 4 | . 4 . Shots . | . . . Rammed 1 | . 1 . Targets Rammed 1 | . 1 . Kicked . | . . . Crushed . | . . . Highest Temperature 210 | . 210 . Average Temperature 87 | . 87 . Received Heat Transfer 198 | . 48 150 Siege Activations . | . . . Robots Corrupted . | . . . Combat Hostiles . | . . . Parts Fried . | . . . Impact Corruptions . | . . . Robots Melted . | . . . Combat Hostiles . | . . . Parts Melted . | . . . Heat Transferred 400 | . 400 . Parts Sabotaged . | . . . Parts Stolen . | . . . Parts Stripped . | . . . Power Chain Reactions . | . . . Alert | -11 -10 -10 ------- Run | Yrd Mat Sub Peak Influence 203 | . 203 . Initial . | . . . Average 83 | . 93 . Maximum Alert Level 1 | . 1 . Low Security (%) 98 | 100 98 . Level 1 1 | . 1 . Level 2 . | . . . Level 3 . | . . . Level 4 . | . . . Level 5 . | . . . High Security . | . . . Max Security . | . . . Squads Dispatched 1 | . 1 . Investigation . | . . . Extermination . | . . . Reinforcement 1 | . 1 . Assault . | . . . Garrison . | . . . Intercept . | . . . Searches Triggered . | . . . Construction Impeded . | . . . Haulers Reinforced . | . . . Active Scanning Responses . | . . . Cargo Convoy Interrupts . | . . . Stealth | -11 -10 -10 --------- Run | Yrd Mat Sub Distress Signals 2 | . 2 . Communications Jammed . | . . . Distress Signals . | . . . Times Spotted 28 | . 15 13 Peak Tracking Total 7 | . 4 7 Tactical Retreats 3 | . 1 2 Traps | -11 -10 -10 ------- Run | Yrd Mat Sub Traps Triggered 1 | . 1 . Indirectly . | . . . Trap Hack Attempts . | . . . Triggered . | . . . Disarmed . | . . . Reprogrammed . | . . . Reused . | . . . Traps Extracted . | . . . Installed . | . . . Triggered . | . . . Machines | -11 -10 -10 ---------- Run | Yrd Mat Sub Machines Disabled . | . . . Max in Single Turn . | . . . Machines Repaired . | . . . Machines Dismantled . | . . . Machines Sabotaged . | . . . Overloaded Fab Kills . | . . . Hacking | -11 -10 -10 --------- Run | Yrd Mat Sub Machines Accessed 4 | . 4 . Terminals 4 | . 4 . Fabricators . | . . . Repair Stations . | . . . Recycling Units . | . . . Scanalyzers . | . . . Garrison Access . | . . . Total Hacks 15 | . 15 . Successful 4 | . 4 . Failed 11 | . 11 . Catastrophic 2 | . 2 . Database Lockouts . | . . . Manual 12 | . 12 . Terminals 15 | . 15 . Fabricators . | . . . Repair Stations . | . . . Recycling Units . | . . . Scanalyzers . | . . . Garrison Access . | . . . Terminal Hacks 3 | . 3 . Robot Analysis 2 | . 2 . Registered Components 1 | . 1 . Fabricator Hacks . | . . . Repair Station Hacks . | . . . Recycling Unit Hacks . | . . . Scanalyzer . | . . . Garrison Access Hacks . | . . . Unauthorized Hacks 1 | . 1 . Terminals 1 | . 1 . Operators 1 | . 1 . Fabricators . | . . . Repair Stations . | . . . Recycling Units . | . . . Scanalyzers . | . . . Garrison Access . | . . . Data Cores Recovered . | . . . Used . | . . . Hacking Detections 4 | . 4 . Full Trace Events 1 | . 1 . Feedback Events . | . . . Feedback Blocked . | . . . Robot Schematics Acquired . | . . . Robots Built . | . . . Authchips . | . . . Time . | . . . Total Robot Build Rating . | . . . Part Schematics Acquired . | . . . Parts Built . | . . . Authchips . | . . . Time . | . . . Total Part Build Rating . | . . . Parts Repaired . | . . . Time . | . . . Parts Recycled . | . . . Recycled Matter . | . . . Retrieved Matter . | . . . Retrieved Components . | . . . Parts Scanalyzed . | . . . Part Schematics Acquired . | . . . Parts Damaged . | . . . Bothacking | -11 -10 -10 ------------ Run | Yrd Mat Sub Used RIF Installer . | . . . Robots Hacked . | . . . Non-combat . | . . . Combat . | . . . Robot Hacks Applied . | . . . Relay Couplers Released . | . . . Fabnet Peak Effective % . | . . . Robots Rewired . | . . . Allies Hacked . | . . . Hacks Repelled . | . . . Allies | -11 -10 -10 -------- Run | Yrd Mat Sub Total Allies . | . . . Largest Group . | . . . Highest-Rated Group . | . . . Highest-Rated Ally . | . . . Total Orders . | . . . Ally Attacks . | . . . Total Damage . | . . . Kills . | . . . Allies Corrupted . | . . . Allies Melted . | . . . Intel | -11 -10 -10 ------- Run | Yrd Mat Sub Robot Analysis Total 2 | . 2 . Derelict Logs Recovered 2 | . . 2 Drone Launches . | . . . Drone Recoveries . | . . . Exploration | -11 -10 -10 ------------- Run | Yrd Mat Sub Turns Passed 948 | 74 601 273 Spaces Moved 949 | 62 509 378 Core 38 | 16 2 20 Treads . | . . . Legs . | . . . Wheels 304 | 46 255 3 Hover . | . . . Flight 607 | . 252 355 Fastest Speed 37 | 50 37 37 Average Speed 56 | 94 60 43 Slowest Speed 280 | 200 280 277 Overloaded Moves . | . . . Propulsion Burnouts . | . . . Robots Hopped 4 | . 4 . Cave-ins Triggered . | . . . Exploration Rate (%) 28 | 4 56 25 Regions Visited 2 Branch Regions 1 Pre-discovered Areas 1 | . . 1 Known Exits Taken 1 | . 1 . Unknown Exits Taken 1 | 1 . . Scrap Searched . | . . . Spaces Dug . | . . . Terrain Destroyed . | . . . Melee . | . . . Projectile . | . . . AOE . | . . . Terrain Rammed . | . . . Walls Destroyed . | . . . Machines Disabled . | . . . Actions | -11 -10 -10 --------- Run | Yrd Mat Sub Total 1254 | 73 730 451 Wait 165 | . 143 22 Move 939 | 61 500 378 Hop 4 | . 4 . Pick Up 18 | 6 11 1 Fast Attach 20 | 6 8 6 Attach 6 | . 2 4 Detach 5 | . 2 3 Swap 4 | . 2 2 Drop 29 | . 21 8 Fire 63 | . 36 27 Melee . | . . . Ram 1 | . 1 . Kick . | . . . Crush . | . . . Escape Stasis . | . . . Rewire . | . . . Trap . | . . . Miscellaneous . | . . . Route ------- -11/Scrapyard -10/Materials (discovered 3 exits: *Mat x2 / *Sub) -10/Subcaves History --------- Turn | Location | Event 20 | -11/Scrapyard | Discovered new exit (range 16) 75 | -11/Scrapyard | Entered Materials 300 | -10/Materials | Build established: Mutant 443 | -10/Materials | Discovered new exit (range 15) 593 | -10/Materials | Identified exit to Materials 660 | -10/Materials | Discovered new exit (range 9) 664 | -10/Materials | Identified exit to Subcaves 670 | -10/Materials | Discovered exit to Materials (range 16) 676 | -10/Materials | Entered Subcaves 677 | -10/Subcaves | Learned location of Storage (-8) 681 | -10/Subcaves | Learned 2 Materials zone layouts 689 | -10/Subcaves | Shifting Twisted Machinery released Battle Cannon 697 | -10/Subcaves | Shifting Twisted Machinery released Sub. Power Source 717 | -10/Subcaves | A swath of the cavern ceiling suddenly collapsed 734 | -10/Subcaves | Shifting Twisted Machinery released Ripper 743 | -10/Subcaves | Shifting Twisted Machinery released Sub. Monowheel 816 | -10/Subcaves | Ambushed by swarm of Subdwellers 882 | -10/Subcaves | Lost 4 allies 908 | -10/Subcaves | Core integrity fell below 50% 914 | -10/Subcaves | Lost 3 parts (1p1u1w) 941 | -10/Subcaves | Core integrity fell below 20% 949 | -10/Subcaves | Destroyed by SR-OT2(R) with Subdweller Laser Last Messages --------------- 00858_ SR-OT2(R) affixes Scrap Shield Fragment to Scrap Shield. 00861_ YB-8F6(R) knocked back. 00864_ System corrupted: Matter fused (-10). 00873_ Scrap Shield destroyed. 00878_ YB-8F6(R) knocked back. 00882_ Lgt. Ion Engine destroyed. 00883_ Battle Cannon destroyed. 00920_ Flight Unit destroyed. 00920_ S-10 Pest destroyed. 00930_ Lgt. Assault Rifle fries itself beyond repair. 00931_ Acquired 19 matter. 00935_ Acquired 12 matter. 00936_ Flight Unit fries itself beyond repair. 00937_ Lgt. Ion Engine fries itself beyond repair. 00937_ Acquired 14 matter. 00942_ Lgt. Ion Engine destroyed. 00946_ Lgt. Assault Rifle destroyed. Map ----- +----------------------------------------------------+ | "## " ""##""" ?????????# #??????? | | ###" " """ ?????????# ## #??? | | #?# "##?????????????## #??? | | ??## "#???????????????# #??? | | ???## ###??????????????## ## #??? | | ????########???????####?????# #?? ##??? | | ??????????????????## #?????# #######????? | | ?????????????????## #?????## ##??????? | | ???????????????### ##????## #??????? | | ??????????????## ##??## #??????? | | ??????????????# #### #??????? | | ??????????????# #??????? | | ??????????????# ##### ????? | | ??????????????## ##???# R ##### #??? | | ???????????????##?????# ##???## ### #??? | | #?????????????????????## ##?????? #??? #??? | | #?????????????????????## #??????? ??? ???? | | #????????????????????## #??????? ??????? | | #???????????????????## #??????? ?????? | | #?????????????????### ##?????? ?????? | | ?????????????????## ##????? ## ??????? | | ?????????????????# #?????#?? ????????? | | ?????????????????# * ###???????? ???????????? | | ?????????????????# &&& #??????????????????????? | | ?????????????????# #%*! #??????????????????????? | | ?????????????????# #% @#??????????????????????? | | ?????????????????# ?# % # ?????????????????????? | | ?????????????????##?# ## ???????????????????? | | ????????????????????# ??### ?????????????????? | | ??????????????????? ??????###????????????????? | | ?????????????????? ?????????????????????????? | | ?????????????????# ?????????????????????????? | | ?????????????????#" ?????????????????????????? | | ?????????????????#" " ??????????????????????????? | | ?????????????????#""""???????????????????????????? | | ???????????????????#?????????????????????????????? | | ?????????????????????????????????????????????????? | | ?????????????????????????????????????????????????? | | ?????????????????????????????????????????????????? | | ?????????????????????????????????????????????????? | | ?????????????????????????????????????????????????? | | ?????????????????????????????????????????????????? | | ?????????????????????????????????????????????????? | | ?????????????????????????????????????????????????? | | ?????????????????????????????????????????????????? | | ?????????????????????????????????????????????????? | | ?????????????????????????????????????????????????? | | ?????????????????????????????????????????????????? | | ?????????????????????????????????????????????????? | | ?????????????????????????????????????????????????? | +----------------------------------------------------+ Best States ------------- Heat Dissipation 25 Energy Generation 10 Energy Capacity 250 Matter Stores 269 Matter Capacity 300 Sight Range 16 Terrain Scan Range 14 Terrain Scan Density 10 Armor Coverage 800 Propulsion Shielding 33 Evasion (%) 62 Item Schematics ----------------- None Robot Schematics ------------------ None Fabricated ------------ Nothing Alien Tech Used ----------------- None Achievements -------------- None Challenges ------------ None Game ------ Seed TargetingCoreInsulator Manual? 0 Play Time 00:16:10 Cumulative 103.8 hours Start 2024.03.18 @ 15:23:41 End 2024.03.18 @ 15:34:59 Sessions 1 Manual Loads 0 Difficulty Rogue Special Mode None Game No. 105 Rogue 105 Adventurer 0 Explorer 0 Win Type - Total 0 Types 0/0/0/0/0/0/0/0/0 Lore% 36 Gallery% 51 Achievement% 35 Wizard Run 0 Options --------- Layout 2 ASCII 1 Keyboard 1 Movement Numpad Keybinds 0 Fullscreen 2 Font 32/TamsynBold Map View 50x44 Zoom Use 0% Tactical HUD 1 Map Filters NONE Filters NONE Steam 1 RUN: 771f163d-47b6-4d91-bb23-23630c885e36